fUST/lending_fUST_20250808
["ID","MTS","AMOUNT","RATE_DAILY","PERIOD"]
[377865872,1754585457215,-1655.29,0.00024109,2]
[377865873,1754585457224,-719.38,0.00024109,2]
[377865874,1754585457233,-610.97,0.00024109,2]
[377865875,1754585457241,-522.7258,0.00024109,7]
[377865876,1754585457250,-1794.57,0.00024109,2]
[377865877,1754585457259,-522.7258,0.00024109,7]
[377865878,1754585457267,-840.44,0.00024109,2]
[377865879,1754585457276,-4384.59,0.00024109,2]
[377865880,1754585457284,-677.45,0.00024109,2]
[377865881,1754585457293,-2656.57,0.00024109,2]
[377865882,1754585457303,-710.03,0.00024109,2]
[377865883,1754585457313,-460.0,0.00024109,2]
[377865884,1754585457322,-460.0,0.00024109,2]
[377865885,1754585457331,-2749.67,0.00024109,2]
[377865886,1754585457340,-460.0,0.00024109,2]
[377865887,1754585457349,-460.0,0.00024109,2]
[377865888,1754585457358,-534.6,0.00024109,2]
[377865889,1754585457368,-2887.33,0.00024109,2]
[377865890,1754585457379,-1793.93,0.00024109,2]
[377865891,1754585457388,-624.01,0.00024109,2]
[377865892,1754585457398,-468.01,0.00024109,2]
[377865893,1754585457407,-601.76,0.00024109,2]
[377865894,1754585457416,-460.0,0.00024109,2]
[377865895,1754585457425,-777.7,0.00024109,2]
[377865896,1754585457435,-722.07,0.00024109,2]
[377865897,1754585457445,-1465.66,0.00024109,2]
[377865898,1754585457454,-546.01,0.00024109,2]
[377865899,1754585457463,-216.52217562,0.0002411,7]
[377865900,1754585457472,-160.0,0.0002411,7]
[377865901,1754585457481,-160.0,0.0002411,7]
[377865902,1754585457490,-5888.0,0.00024132,2]
[377865903,1754585457500,-151.0,0.00024139,2]
[377865904,1754585457509,-151.0,0.00024164,7]
[377865905,1754585457518,-151.0,0.00024164,7]
[377865906,1754585457527,-1012.263324,0.00024164,7]
[377865907,1754585457536,-1012.263324,0.00024164,7]
[377865908,1754585457545,-250.634318,0.00024164,7]
[377865909,1754585457554,-250.634318,0.00024164,7]
[377865910,1754585457563,-151.0,0.00024164,7]
[377865911,1754585457571,-239.192816,0.00024164,7]
[377865912,1754585457580,-151.0,0.00024164,7]
[377865913,1754585457589,-239.192816,0.00024164,7]
[377865914,1754585457599,-1405.251648,0.00024164,7]
[377865915,1754585457607,-1405.251648,0.00024164,7]
[377865916,1754585457616,-608.297843,0.00024164,7]
[377865917,1754585457626,-608.297843,0.00024164,7]
[377865918,1754585457635,-151.955716,0.00024164,7]
[377865919,1754585457644,-3815.083943,0.00024164,7]
[377865920,1754585457653,-3815.083943,0.00024164,7]
[377865921,1754585457662,-2500.0,0.00024164,2]
[377865922,1754585457670,-1500.0,0.00024168,2]
[377865923,1754585457679,-150.0,0.00024173,2]
[377865924,1754585457687,-244.502984,0.000242,7]
[377865925,1754585457696,-618.455089,0.000242,7]
[377865926,1754585457705,-618.455089,0.000242,7]
[377865927,1754585457714,-151.0,0.000242,7]
[377865928,1754585457723,-151.0,0.000242,7]
[377865929,1754585457730,-151.0,0.000242,7]
[377865930,1754585457737,-5888.0,0.000242,7]
[377865931,1754585457743,-1500.0,0.00024204,2]
[377865932,1754585457752,-4309.0,0.00024237,2]
[377865933,1754585457761,-151.0,0.00024298,7]
[377865934,1754585457775,-153.454116,0.00024298,7]
[377865935,1754585457784,-167.658214,0.00024298,7]
[377865936,1754585457793,-167.658214,0.00024298,7]
[377865937,1754585457802,-192.573371,0.00024298,7]
[377865938,1754585457813,-192.573371,0.00024298,7]
[377865939,1754585457822,-268.972367,0.00024298,7]
[377865940,1754585457831,-268.972367,0.00024298,7]
[377865941,1754585457841,-5888.0,0.00024298,2]
[377865942,1754585457852,-600.0,0.00024322,2]
[377865943,1754585457862,-600.0,0.00024322,2]
[377865944,1754585457871,-176.31,0.00024322,2]
[377865945,1754585457884,-5000.0,0.00024329,2]
[377865946,1754585457894,-2000.0,0.00024367,2]
[377865947,1754585457905,-450.0,0.00024367,2]
[377865948,1754585457914,-151.321279,0.00024383,7]
[377865949,1754585457924,-151.0,0.00024383,7]
[377865950,1754585457933,-166.304557,0.00024383,7]
[377865951,1754585457942,-166.304557,0.00024383,7]
[377865952,1754585457951,-151.0,0.00024383,7]
[377865953,1754585457961,-151.0,0.00024383,7]
[377865954,1754585457970,-151.0,0.00024383,7]
[377865955,1754585457979,-151.0,0.00024383,7]
[377865956,1754585457988,-151.0,0.00024383,7]
[377865957,1754585457997,-151.0,0.00024383,7]
[377865958,1754585458007,-602.415182,0.00024383,7]
[377865959,1754585458016,-151.0,0.00024383,7]
[377865960,1754585458026,-151.0,0.00024383,7]
[377865961,1754585458035,-602.415182,0.00024383,7]
[377865962,1754585458045,-151.0,0.00024383,7]
[377865963,1754585458054,-151.0,0.00024383,7]
[377865964,1754585458064,-151.0,0.00024383,7]
[377865965,1754585458074,-151.0,0.00024383,7]
[377865966,1754585458084,-397.303748,0.00024383,7]
[377865967,1754585458094,-151.0,0.00024383,7]
[377865968,1754585458104,-151.0,0.00024383,7]
[377865969,1754585458236,-151.0,0.00024383,7]
[377865970,1754585458246,-172.685185,0.00024383,7]
[377865971,1754585458256,-172.685185,0.00024383,7]
[377865972,1754585458266,-151.0,0.00024383,7]
[377865973,1754585458276,-151.0,0.00024383,7]
[377865974,1754585458285,-1492.974833,0.00024383,7]
[377865975,1754585458295,-151.0,0.00024383,7]
[377865976,1754585458305,-151.0,0.00024383,7]
[377865977,1754585458314,-151.0,0.00024383,7]
[377865978,1754585458324,-151.0,0.00024383,7]
[377865979,1754585458333,-170.74834413,0.00024383,2]
[377865980,1754585458342,-151.0,0.00024383,7]
[377865981,1754585458352,-151.0,0.00024383,7]
[377865982,1754585458361,-151.0,0.00024383,7]
[377865983,1754585458371,-151.0,0.00024383,7]
[377865984,1754585458383,-593.43,0.00024383,2]
[377865985,1754585458393,-961.59,0.00024383,2]
[377865986,1754585458403,-460.0,0.00024383,2]
[377865987,1754585458412,-164.624851,0.00024383,7]
[377865988,1754585458421,-164.624851,0.00024383,7]
[377865989,1754585458431,-460.0,0.00024383,2]
[377865990,1754585458440,-1025.68,0.00024383,2]
[377865991,1754585458449,-711.58,0.00024383,2]
[377865992,1754585458458,-151.0,0.00024383,7]
[377865993,1754585458468,-151.0,0.00024383,7]
[377865994,1754585458477,-151.0,0.00024383,7]
[377865995,1754585458487,-230.914203,0.00024383,7]
[377865996,1754585458496,-569.03,0.00024383,2]
[377865997,1754585458505,-271.750061,0.00024383,7]
[377865998,1754585458515,-271.750061,0.00024383,7]
[377865999,1754585458524,-677.77,0.00024383,2]
[377866000,1754585458533,-569.98,0.00024383,2]
[377866001,1754585458543,-466.12,0.00024383,2]
[377866002,1754585458552,-460.0,0.00024383,2]
[377866003,1754585458561,-460.0,0.00024383,2]
[377866004,1754585458570,-822.97,0.00024383,2]
[377866005,1754585458579,-628.38,0.00024383,2]
[377866006,1754585458589,-1150.72,0.00024383,2]
[377866007,1754585458598,-462.74,0.00024383,2]
[377866008,1754585458607,-857.1,0.00024383,2]
[377866009,1754585458616,-888.93,0.00024383,2]
[377866010,1754585458625,-4583.72,0.00024383,2]
[377866011,1754585458634,-585.2,0.00024383,2]
[377866012,1754585458643,-807.02,0.00024383,2]
[377866013,1754585458652,-460.0,0.00024383,2]
[377866014,1754585458661,-1929.28,0.00024383,2]
[377866015,1754585458670,-460.0,0.00024383,2]
[377866016,1754585458679,-482.50179119,0.00024383,2]
[377866017,1754585458688,-1106.41,0.00024383,2]
[377866018,1754585458698,-151.0,0.00024383,7]
[377866019,1754585458707,-674.64,0.00024383,2]
[377866020,1754585458716,-976.62,0.00024383,2]
[377866021,1754585458725,-1790.64,0.00024383,2]
[377866022,1754585458735,-1216.9,0.00024383,2]
[377866023,1754585458744,-1021.61,0.00024383,2]
[377866024,1754585458754,-812.24,0.00024383,2]
[377866025,1754585458763,-1041.91,0.00024383,2]
[377866026,1754585458773,-1655.29,0.00024383,2]
[377866027,1754585458788,-719.38,0.00024383,2]
[377866028,1754585458798,-610.97,0.00024383,2]
[377866029,1754585458811,-522.7258,0.00024383,7]
[377866030,1754585458821,-1794.57,0.00024383,2]
[377866031,1754585458830,-522.7258,0.00024383,7]
[377866032,1754585458840,-840.44,0.00024383,2]
[377866033,1754585458854,-4384.59,0.00024383,2]
[377866034,1754585458864,-677.45,0.00024383,2]
[377866035,1754585458873,-2656.57,0.00024383,2]
[377866036,1754585458884,-710.03,0.00024383,2]
[377866037,1754585458893,-460.0,0.00024383,2]
[377866038,1754585458903,-460.0,0.00024383,2]
[377866039,1754585458913,-2749.67,0.00024383,2]
[377866040,1754585458922,-460.0,0.00024383,2]
[377866041,1754585458932,-460.0,0.00024383,2]
[377866042,1754585458942,-534.6,0.00024383,2]
[377866043,1754585458951,-2887.33,0.00024383,2]
[377866044,1754585458960,-1793.93,0.00024383,2]
[377866045,1754585458969,-624.01,0.00024383,2]
[377866046,1754585458978,-468.01,0.00024383,2]
[377866047,1754585458988,-601.76,0.00024383,2]
[377866048,1754585458998,-460.0,0.00024383,2]
[377866049,1754585459007,-777.7,0.00024383,2]
[377866050,1754585459016,-722.07,0.00024383,2]
[377866051,1754585459026,-1465.66,0.00024383,2]
[377866052,1754585459035,-546.01,0.00024383,2]
[377866053,1754585459044,-1000.0,0.00024396,2]
[377866054,1754585459054,-288.99,0.00024413,2]
[377866055,1754585459063,-151.0,0.00024417,2]
[377866056,1754585459073,-618.455089,0.00024435,7]
[377866057,1754585459083,-618.455089,0.00024435,7]
[377866058,1754585459092,-151.0,0.00024435,7]
[377866059,1754585459102,-151.0,0.00024435,7]
[377866060,1754585459111,-4309.0,0.00024435,2]
[377866061,1754585459121,-13106.19777606,0.0002445,2]
[377866062,1754585459132,-151.0,0.00024457,7]
[377866063,1754585459142,-167.658214,0.00024457,7]
[377866064,1754585459151,-167.658214,0.00024457,7]
[377866065,1754585459160,-268.972367,0.00024457,7]
[377866066,1754585459170,-268.972367,0.00024457,7]
[377866067,1754585459180,-250.0,0.00024468,2]
[377866068,1754585459190,-151.0,0.000245,7]
[377866069,1754585459199,-460.0,0.00024517,2]
[377866070,1754585459208,-317.52836456,0.00024537,2]
[377866071,1754585459218,-818.975,0.00024544,7]
[377866072,1754585459227,-151.0,0.0002455,7]
[377866073,1754585459236,-250.634318,0.0002455,7]
[377866074,1754585459245,-250.634318,0.0002455,7]
[377866075,1754585459255,-151.0,0.0002455,7]
[377866076,1754585459265,-151.0,0.0002455,7]
[377866077,1754585459274,-1405.251648,0.0002455,7]
[377866078,1754585459283,-1405.251648,0.0002455,7]
[377866079,1754585459292,-608.297843,0.0002455,7]
[377866080,1754585459302,-608.297843,0.0002455,7]
[377866081,1754585459311,-3925.19020053,0.0002455,2]
[377866082,1754585459320,-3815.083943,0.0002455,7]
[377866083,1754585459329,-3815.083943,0.0002455,7]
[377866084,1754585459338,-2000.0,0.00024594,2]
[377866085,1754585459348,-2000.0,0.00024594,2]
[377866086,1754585459357,-2000.0,0.000246,7]
[377866087,1754585459367,-192.573371,0.000246,7]
[377866088,1754585459378,-192.573367,0.000246,7]
[377866089,1754585459387,-1012.263324,0.000246,7]
[377866090,1754585459397,-1012.263324,0.000246,7]
[377866091,1754585459406,-239.192816,0.000246,7]
[377866092,1754585459415,-239.192816,0.000246,7]
[377866093,1754585459424,-10100.0,0.000246,2]
[377866094,1754585459434,-948.20633842,0.00024649,2]
[377866095,1754585459443,-6603.78363136,0.0002465,2]
[377866096,1754585459452,-302505.73129495,0.0002465,2]
[377866097,1754585459461,-503.62307387,0.0002465,2]
[377866098,1754585459470,-151.0,0.0002465,7]
[377866099,1754585459480,-374.849396,0.0002465,7]
[377866100,1754585459488,-374.849396,0.0002465,7]
[377866101,1754585459498,-151.0,0.0002465,7]
[377866102,1754585459507,-151.0,0.0002465,7]
[377866103,1754585459516,-151.0,0.0002465,7]
[377866104,1754585459525,-166.304557,0.0002465,7]
[377866105,1754585459535,-166.304557,0.0002465,7]
[377866106,1754585459545,-151.0,0.0002465,7]
[377866107,1754585459563,-151.0,0.0002465,7]
[377866108,1754585459573,-151.0,0.0002465,7]
[377866109,1754585459583,-151.0,0.0002465,7]
[377866110,1754585459592,-292.45064,0.0002465,7]
[377866111,1754585459601,-292.45064,0.0002465,7]
[377866112,1754585459611,-151.0,0.0002465,7]
[377866113,1754585459619,-151.0,0.0002465,7]
[377866114,1754585459630,-151.0,0.0002465,7]
[377866115,1754585459639,-602.415182,0.0002465,7]
[377866116,1754585459648,-151.0,0.0002465,7]
[377866117,1754585459656,-151.0,0.0002465,7]
[377866118,1754585459665,-602.415182,0.0002465,7]
[377866119,1754585459675,-151.0,0.0002465,7]
[377866120,1754585459684,-151.0,0.0002465,7]
[377866121,1754585459693,-151.0,0.0002465,7]
[377866122,1754585459702,-151.0,0.0002465,7]
[377866123,1754585459711,-397.303748,0.0002465,7]
[377866124,1754585459720,-151.0,0.0002465,7]
[377866125,1754585459730,-151.0,0.0002465,7]
[377866126,1754585459739,-183.401656,0.0002465,7]
[377866127,1754585459748,-151.0,0.0002465,7]
[377866128,1754585459758,-151.0,0.0002465,7]
[377866129,1754585459768,-191.884738,0.0002465,7]
[377866130,1754585459782,-618.455089,0.0002465,7]
[377866131,1754585459791,-618.455089,0.0002465,7]
[377866132,1754585459801,-1492.974833,0.0002465,7]
[377866133,1754585459810,-1492.974833,0.0002465,7]
[377866134,1754585459820,-151.0,0.0002465,7]
[377866135,1754585459829,-208.585868,0.0002465,7]
[377866136,1754585459838,-151.0,0.0002465,7]
[377866137,1754585459850,-151.0,0.0002465,7]
[377866138,1754585459860,-151.0,0.0002465,7]
[377866139,1754585459869,-167.658214,0.0002465,7]
[377866140,1754585459881,-167.658214,0.0002465,7]
[377866141,1754585459890,-151.0,0.0002465,7]
[377866142,1754585459899,-151.0,0.0002465,7]
[377866143,1754585459909,-151.0,0.0002465,7]
[377866144,1754585459918,-151.0,0.0002465,7]
[377866145,1754585459927,-268.972367,0.0002465,7]
[377866146,1754585459936,-268.972367,0.0002465,7]
[377866147,1754585459945,-1012.263324,0.0002465,7]
[377866148,1754585459955,-1012.263324,0.0002465,7]
[377866149,1754585459964,-247.927842,0.0002465,7]
[377866150,1754585459974,-164.624851,0.0002465,7]
[377866151,1754585459983,-164.624851,0.0002465,7]
[377866152,1754585459993,-151.0,0.0002465,7]
[377866153,1754585460003,-151.0,0.0002465,7]
[377866154,1754585460014,-153.587396,0.0002465,7]
[377866155,1754585460025,-271.750061,0.0002465,7]
[377866156,1754585460035,-271.750061,0.0002465,7]
[377866157,1754585460047,-250.634318,0.0002465,7]
[377866158,1754585460059,-250.634318,0.0002465,7]
[377866159,1754585460070,-151.0,0.0002465,7]
[377866160,1754585460080,-239.192816,0.0002465,7]
[377866161,1754585460091,-179.146169,0.0002465,7]
[377866162,1754585460102,-239.192816,0.0002465,7]
[377866163,1754585460115,-1405.251648,0.0002465,7]
[377866164,1754585460126,-1405.251648,0.0002465,7]
[377866165,1754585460143,-608.297843,0.0002465,7]
[377866166,1754585460154,-608.297843,0.0002465,7]
[377866167,1754585460164,-151.0,0.0002465,7]
[377866168,1754585460175,-522.7258,0.0002465,7]
[377866169,1754585460185,-522.7258,0.0002465,7]
[377866170,1754585460195,-3815.083943,0.0002465,7]
[377866171,1754585460207,-3815.083943,0.0002465,7]
[377866172,1754585460217,-593.43,0.00024657,2]
[377866173,1754585460228,-961.59,0.00024657,2]
[377866174,1754585460239,-460.0,0.00024657,2]
[377866175,1754585460250,-460.0,0.00024657,2]
[377866176,1754585460261,-1025.68,0.00024657,2]
[377866177,1754585460271,-711.58,0.00024657,2]
[377866178,1754585460281,-569.03,0.00024657,2]
[377866179,1754585460291,-677.77,0.00024657,2]
[377866180,1754585460301,-569.98,0.00024657,2]
[377866181,1754585460311,-466.12,0.00024657,2]
[377866182,1754585460321,-460.0,0.00024657,2]
[377866183,1754585460330,-460.0,0.00024657,2]
[377866184,1754585460340,-822.97,0.00024657,2]
[377866185,1754585460349,-628.38,0.00024657,2]
[377866186,1754585460359,-1150.72,0.00024657,2]
[377866187,1754585460368,-462.74,0.00024657,2]
[377866188,1754585460380,-857.1,0.00024657,2]
[377866189,1754585460392,-177.19095674,0.00024657,2]
[377866190,1754585460503,-711.73904326,0.00024657,2]
[377866191,1754585460513,-4583.72,0.00024657,2]
[377866192,1754585460522,-585.2,0.00024657,2]
[377866193,1754585460532,-807.02,0.00024657,2]
[377866194,1754585460541,-460.0,0.00024657,2]
[377866195,1754585460550,-1929.28,0.00024657,2]
[377866196,1754585460559,-460.0,0.00024657,2]
[377866197,1754585460567,-1106.41,0.00024657,2]
[377866198,1754585460576,-674.64,0.00024657,2]
[377866199,1754585460584,-976.62,0.00024657,2]
[377866200,1754585460593,-1790.64,0.00024657,2]
[377866201,1754585460602,-1216.9,0.00024657,2]
[377866202,1754585460610,-1021.61,0.00024657,2]
[377866203,1754585460619,-812.24,0.00024657,2]
[377866204,1754585460629,-1041.91,0.00024657,2]
[377866205,1754585460640,-1655.29,0.00024657,2]
[377866206,1754585460649,-719.38,0.00024657,2]
[377866207,1754585460658,-610.97,0.00024657,2]
[377866208,1754585460667,-1794.57,0.00024657,2]
[377866209,1754585460677,-840.44,0.00024657,2]
[377866210,1754585460689,-677.45,0.00024657,2]
[377866211,1754585460698,-4384.59,0.00024657,2]
[377866212,1754585460707,-2656.57,0.00024657,2]
[377866213,1754585460715,-710.03,0.00024657,2]
[377866214,1754585460724,-460.0,0.00024657,2]
[377866215,1754585460733,-460.0,0.00024657,2]
[377866216,1754585460742,-2749.67,0.00024657,2]
[377866217,1754585460752,-460.0,0.00024657,2]
[377866218,1754585460761,-460.0,0.00024657,2]
[377866219,1754585460773,-534.6,0.00024657,2]
[377866220,1754585460784,-2887.33,0.00024657,2]
[377866221,1754585460793,-1793.93,0.00024657,2]
[377866222,1754585460802,-624.01,0.00024657,2]
[377866223,1754585460812,-468.01,0.00024657,2]
[377866224,1754585460823,-601.76,0.00024657,2]
[377866225,1754585460833,-460.0,0.00024657,2]
[377866226,1754585460842,-777.7,0.00024657,2]
[377866227,1754585460853,-722.07,0.00024657,2]
[377866228,1754585460863,-546.01,0.00024657,2]
[377866229,1754585460872,-1465.66,0.00024657,2]
[377866230,1754585460885,-150.0,0.00024658,2]
[377866231,1754585460894,-151.0,0.00024658,7]
[377866232,1754585460901,-151.0,0.00024658,7]
[377866233,1754585460908,-151.0,0.00024658,7]
[377866234,1754585460916,-151.0,0.00024658,7]
[377866235,1754585460926,-151.0,0.00024658,7]
[377866236,1754585460935,-151.0,0.00024658,7]
[377866237,1754585460945,-151.0,0.00024658,7]
[377866238,1754585460954,-151.0,0.00024658,7]
[377866239,1754585460963,-151.0,0.00024658,7]
[377866240,1754585460972,-151.0,0.00024658,7]
[377866241,1754585460981,-218.144474,0.00024658,7]
[377866242,1754585460990,-200.0,0.00024658,15]
[377866243,1754585460999,-380.0,0.00024658,2]
[377866244,1754585461007,-500.0,0.00024658,2]
[377866245,1754585461016,-1766.42077689,0.000247,5]
[377866246,1754585461025,-3000.0,0.00024712,2]
[377866247,1754585461034,-1214.00565859,0.00024716,2]
[377866248,1754585461147,-300.0,0.00024721,2]
[377866249,1754585461171,-500.0,0.00024752,2]
[377866250,1754585461181,-5888.0,0.00024794,7]
[377866251,1754585461190,-151.0,0.000248,7]
[377866252,1754585461198,-151.0,0.000248,7]
[377866253,1754585461207,-166.304557,0.000248,7]
[377866254,1754585461216,-166.304557,0.000248,7]
[377866255,1754585461226,-151.0,0.000248,7]
[377866256,1754585461235,-151.0,0.000248,7]
[377866257,1754585461244,-151.0,0.000248,7]
[377866258,1754585461253,-151.0,0.000248,7]
[377866259,1754585461262,-292.45064,0.000248,7]
[377866260,1754585461270,-292.45064,0.000248,7]
[377866261,1754585461279,-151.668269,0.000248,7]
[377866262,1754585461288,-151.0,0.000248,7]
[377866263,1754585461298,-151.0,0.000248,7]
[377866264,1754585461306,-602.415182,0.000248,7]
[377866265,1754585461315,-151.0,0.000248,7]
[377866266,1754585461324,-151.0,0.000248,7]
[377866267,1754585461333,-602.415182,0.000248,7]
[377866268,1754585461342,-156.0,0.000248,2]
[377866269,1754585461351,-151.0,0.000248,7]
[377866270,1754585461360,-161.6688,0.000248,7]
[377866271,1754585461369,-151.0,0.000248,7]
[377866272,1754585461378,-1500.0,0.000248,14]
[377866273,1754585461390,-1500.0,0.000248,14]
[377866274,1754585461399,-1500.0,0.000248,14]
[377866275,1754585461408,-1500.0,0.000248,14]
[377866276,1754585461417,-1500.0,0.000248,14]
[377866277,1754585461426,-1500.0,0.000248,14]
[377866278,1754585461435,-1064.481526,0.000248,14]
[377866279,1754585461444,-151.0,0.000248,7]
[377866280,1754585461453,-151.0,0.000248,7]
[377866281,1754585461463,-397.303748,0.000248,7]
[377866282,1754585461472,-397.303748,0.000248,7]
[377866283,1754585461481,-151.0,0.000248,7]
[377866284,1754585461489,-151.0,0.000248,7]
[377866285,1754585461497,-151.0,0.000248,7]
[377866286,1754585461506,-151.0,0.000248,7]
[377866287,1754585461515,-172.685185,0.000248,7]
[377866288,1754585461524,-172.685185,0.000248,7]
[377866289,1754585461534,-151.0,0.000248,7]
[377866290,1754585461543,-151.0,0.000248,7]
[377866291,1754585461552,-618.455089,0.000248,7]
[377866292,1754585461561,-151.0,0.000248,7]
[377866293,1754585461570,-618.455092,0.000248,7]
[377866294,1754585461579,-1492.974833,0.000248,7]
[377866295,1754585461589,-1492.974833,0.000248,7]
[377866296,1754585461599,-1492.974833,0.000248,7]
[377866297,1754585461609,-1492.974824,0.000248,7]
[377866298,1754585461618,-151.0,0.000248,7]
[377866299,1754585461628,-151.0,0.000248,7]
[377866300,1754585461642,-151.0,0.000248,7]
[377866301,1754585461652,-167.658214,0.000248,7]
[377866302,1754585461662,-167.658208,0.000248,7]
[377866303,1754585461672,-151.0,0.000248,7]
[377866304,1754585461681,-151.0,0.000248,7]
[377866305,1754585461691,-151.0,0.000248,7]
[377866306,1754585461702,-151.0,0.000248,7]
[377866307,1754585461712,-151.0,0.000248,7]
[377866308,1754585461722,-268.972367,0.000248,7]
[377866309,1754585461732,-268.972369,0.000248,7]
[377866310,1754585461743,-1012.263324,0.000248,7]
[377866311,1754585461753,-1012.263324,0.000248,7]
[377866312,1754585461763,-164.624851,0.000248,7]
[377866313,1754585461777,-164.624851,0.000248,7]
[377866314,1754585461787,-164.624851,0.000248,7]
[377866315,1754585461796,-164.624851,0.000248,7]
[377866316,1754585461806,-151.0,0.000248,7]
[377866317,1754585461817,-151.0,0.000248,7]
[377866318,1754585461828,-151.0,0.000248,7]
[377866319,1754585461838,-151.0,0.000248,7]
[377866320,1754585461848,-271.750061,0.000248,7]
[377866321,1754585461858,-271.750061,0.000248,7]
[377866322,1754585461868,-271.750061,0.000248,7]
[377866323,1754585461877,-271.750061,0.000248,7]
[377866324,1754585461892,-250.634318,0.000248,7]
[377866325,1754585461902,-250.634318,0.000248,7]
[377866326,1754585461911,-151.0,0.000248,7]
[377866327,1754585461921,-239.192816,0.000248,7]
[377866328,1754585461930,-239.192816,0.000248,7]
[377866329,1754585461940,-1405.251648,0.000248,7]
[377866330,1754585461949,-1405.251648,0.000248,7]
[377866331,1754585461958,-608.297843,0.000248,7]
[377866332,1754585461969,-608.297843,0.000248,7]
[377866333,1754585461979,-151.0,0.000248,7]
[377866334,1754585461988,-151.0,0.000248,7]
[377866335,1754585461998,-522.7258,0.000248,7]
[377866336,1754585462007,-522.7258,0.000248,7]
[377866337,1754585462016,-3815.083943,0.000248,7]
[377866338,1754585462026,-3815.083943,0.000248,7]
[377866339,1754585462036,-188.69931727,0.00024831,2]
[377866340,1754585462045,-5888.0,0.00024881,2]
[377866341,1754585462054,-200.0,0.00024899,2]
[377866342,1754585462063,-151.0,0.000249,7]
[377866343,1754585462072,-374.849396,0.000249,7]
[377866344,1754585462080,-374.849396,0.000249,7]
[377866345,1754585462089,-151.0,0.000249,7]
[377866346,1754585462098,-151.0,0.000249,7]
[377866347,1754585462107,-151.0,0.000249,7]
[377866348,1754585462115,-151.0,0.000249,7]
[377866349,1754585462124,-166.304557,0.000249,7]
[377866350,1754585462136,-166.304557,0.000249,7]
[377866351,1754585462146,-152.637558,0.000249,7]
[377866352,1754585462156,-151.0,0.000249,7]
[377866353,1754585462165,-151.0,0.000249,7]
[377866354,1754585462174,-151.0,0.000249,7]
[377866355,1754585462183,-292.45064,0.000249,7]
[377866356,1754585462193,-292.45064,0.000249,7]
[377866357,1754585462202,-151.0,0.000249,7]
[377866358,1754585462211,-151.0,0.000249,7]
[377866359,1754585462221,-602.415182,0.000249,7]
[377866360,1754585462231,-151.0,0.000249,7]
[377866361,1754585462240,-151.0,0.000249,7]
[377866362,1754585462249,-602.415182,0.000249,7]
[377866363,1754585462259,-151.0,0.000249,7]
[377866364,1754585462269,-169.288765,0.000249,7]
[377866365,1754585462278,-151.0,0.000249,7]
[377866366,1754585462288,-397.303748,0.000249,7]
[377866367,1754585462297,-257.194848,0.000249,7]
[377866368,1754585462307,-172.685185,0.000249,7]
[377866369,1754585462316,-172.685185,0.000249,7]
[377866370,1754585462325,-580.06885989,0.000249,2]
[377866371,1754585462335,-151.0,0.000249,7]